fUSD/lending_fUSD_20251206
["ID","MTS","AMOUNT","RATE_DAILY","PERIOD"]
[396532941,1765040683559,-181.61335848,0.000128,2]
[396532945,1765040685769,-173.16906972,0.000128,2]
[396532947,1765040687620,1500.0,0.00022,30]
[396532948,1765040687822,-230.05915553,0.000128,2]
[396532951,1765040691231,1500.0,0.00022,30]
[396532958,1765040698572,-241.62101737,0.000128,2]
[396532959,1765040698596,-199.94850001,0.000128,2]
[396532960,1765040698619,-58.43048262,0.000128,2]
[396532962,1765040699693,800.0,0.00022,30]
[396532963,1765040701229,-166.68338286,0.000128,2]
[396532965,1765040703838,-193.0,0.000128,2]
[396532967,1765040706026,-402.50747456,0.000128,2]
[396532968,1765040708632,-411.30826797,0.000128,2]
[396532971,1765040712788,-297.18916507,0.000128,2]
[396532974,1765040714949,-397.77773669,0.000128,2]
[396532976,1765040717225,-267.61661922,0.000128,2]
[396532982,1765040719520,-245.73222563,0.000128,2]
[396532989,1765040721439,-302.82909798,0.000128,2]
[396532992,1765040724177,-236.05885901,0.000128,2]
[396532994,1765040725557,-345.95812001,0.000128,2]
[396532998,1765040731793,-605.28159582,0.000128,2]
[396532999,1765040733323,-212.04450742,0.000128,2]
[396533002,1765040736022,605.281596,0.00012736,2]
[396533003,1765040736080,-182.0,0.000128,2]
[396533005,1765040738555,-167.43040342,0.000128,2]
[396533006,1765040740658,-293.73804115,0.000128,2]
[396533008,1765040744532,-199.45,0.000128,2]
[396533010,1765040746369,-286.74432057,0.000128,2]
[396533011,1765040746394,-122.65762008,0.000128,2]
[396533012,1765040750196,-112.80537992,0.000128,2]
[396533013,1765040750220,-82.19462008,0.000128,2]
[396533050,1765040788859,-150.99073419,0.000128,2]
[396533051,1765040788885,-38.2506807,0.000128,2]
[396533069,1765040813552,561.474911,0.00012736,2]
[396533070,1765040814649,-160.93471467,0.000128,2]
[396533071,1765040814676,-109.82460052,0.0001285,2]
[396533072,1765040814700,-29.24068481,0.00012897,2]
[396533081,1765040831968,-322.13409081,0.000128,2]
[396533084,1765040834562,-254.88870554,0.000128,2]
[396533092,1765040836486,-456.23748779,0.000128,2]
[396533097,1765040839115,-503.72178989,0.000128,2]
[396533101,1765040840547,-307.95153014,0.000128,2]
[396533103,1765040842592,-203.2668536,0.000128,2]
[396533104,1765040844200,-183.66164507,0.000128,2]
[396533105,1765040846179,-286.63954345,0.000128,2]
[396533106,1765040848700,-319.46173861,0.000128,2]
[396533107,1765040850202,-453.87958622,0.000128,2]
[396533108,1765040852817,-164.37742808,0.000128,2]
[396533109,1765040853895,-459.80808965,0.000128,2]
[396533110,1765040856074,-160.06638997,0.000128,2]
[396533111,1765040858903,-375.49106693,0.000128,2]
[396533112,1765040860958,-169.92881942,0.000128,2]
[396533126,1765040936956,-95.47216945,0.000128,2]
[396533127,1765040936982,-225.79103248,0.000128,2]
[396533128,1765040940892,-231.59954467,0.000128,2]
[396533130,1765040943648,-246.26697383,0.00012799,2]
[396533131,1765040945070,-53.73302617,0.00012799,2]
[396533132,1765040945094,-150.0,0.00012799,2]
[396533133,1765040945118,-0.87196981,0.00012799,2]
[396533134,1765040947791,-172.11848552,0.00012799,2]
[396533138,1765040950584,-127.00954467,0.00012799,2]
[396533139,1765040950610,-92.07695511,0.000128,2]
[396533145,1765040954269,-151.0,0.00012797,2]
[396533146,1765040954296,-95.00727806,0.000128,2]
[396533147,1765040955751,-151.0,0.00012797,2]
[396533148,1765040955778,-143.65233182,0.000128,2]
[396533149,1765040957341,-289.63368448,0.000128,2]
[396533150,1765040959952,-224.43432521,0.000128,2]
[396533151,1765040961534,-157.90268983,0.000128,2]
[396533152,1765040963702,-342.09731017,0.000128,2]
[396533153,1765040967470,-256.0,0.000128,2]
[396533154,1765040969607,-164.83,0.000128,2]
[396533155,1765040972868,-232.63401562,0.000128,2]
[396533157,1765040974939,-334.1662362,0.000128,2]
[396533158,1765040976992,-157.992483,0.000128,2]
[396533159,1765040978991,-156.0900028,0.000128,2]
[396533160,1765040981811,-155.32499974,0.000128,2]
[396533167,1765041012030,-217.75805945,0.00012799,2]
[396533169,1765041015271,-82.24194055,0.00012799,2]
[396533170,1765041015295,-140.08357308,0.00012799,2]
[396533171,1765041016940,-200.72326625,0.00012799,2]
[396533173,1765041019368,-403.99664958,0.00012799,2]
[396533174,1765041020928,-217.7046633,0.00012799,2]
[396533175,1765041023077,-237.49184779,0.00012799,2]
[396533176,1765041023101,-62.50815221,0.00012799,2]
[396533177,1765041029247,1457.037737,0.00012735,2]
[396533178,1765041029837,-237.49184779,0.00012799,2]
[396533179,1765041029865,-22.50815221,0.00012799,2]
[396533181,1765041031793,-232.49184779,0.00012799,2]
[396533182,1765041031805,-5354.73324785,0.000128,2]
[396533183,1765041031848,-286.6042727,0.000128,2]
[396533184,1765041031862,-91600.0,0.000128,2]
[396533185,1765041031903,-454.69711136,0.000128,2]
[396533186,1765041031916,-1722.90736263,0.000128,2]
[396533187,1765041031930,-357.77835357,0.000128,2]
[396533188,1765041031944,-3668.11136025,0.000128,2]
[396533189,1765041031974,-9838.84883034,0.000128,2]
[396533190,1765041031987,-646.94954892,0.000128,2]
[396533191,1765041032000,-400.0,0.000128,2]
[396533192,1765041032012,-3086.38560984,0.000128,2]
[396533193,1765041032031,-14266.11099933,0.000128,2]
[396533194,1765041032044,-7982.21704783,0.000128,2]
[396533195,1765041032056,-29922.71321307,0.000128,2]
[396533196,1765041032425,-573.67783679,0.000128,2]
[396533207,1765041035907,-266.99255267,0.00012799,2]
[396533208,1765041035934,-33.00744733,0.00012799,2]
[396533209,1765041037313,-222.76728083,0.00012799,2]
[396533210,1765041037341,-49.55501116,0.00012799,2]
[396533223,1765041037984,-354.0347142,0.00012799,2]
[396533224,1765041038049,-96.41027464,0.00012799,2]
[396533225,1765041038059,-456.08863483,0.00012799,2]
[396533226,1765041038069,-500.0,0.00012799,2]
[396533227,1765041038079,-500.0,0.00012799,2]
[396533228,1765041038088,-500.0,0.00012799,2]
[396533229,1765041038098,-152131.28007466,0.000128,2]
[396533230,1765041038163,-75354.634303,0.000128,2]
[396533231,1765041038175,-192835.44563867,0.000128,2]
[396533232,1765041038185,-1200.0,0.00012891,2]
[396533233,1765041038195,-200.0,0.00012892,2]
[396533234,1765041038205,-500.0,0.00012892,2]
[396533236,1765041038214,-500.0,0.00012892,2]
[396533238,1765041038224,-500.0,0.00012892,2]
[396533240,1765041038233,-500.0,0.00012892,2]
[396533242,1765041038242,-500.0,0.00012892,2]
[396533244,1765041038252,-185.93979184,0.00012892,2]
[396533246,1765041038261,-500.0,0.00012892,2]
[396533247,1765041038271,-200.0,0.00012892,2]
[396533249,1765041038281,-1000.0,0.000129,2]
[396533251,1765041038290,-33407.2883,0.000129,2]
[396533253,1765041038299,-791.35982152,0.000129,2]
[396533255,1765041038309,-200.0,0.00013129,2]
[396533257,1765041038318,-207.4,0.00013129,2]
[396533259,1765041038327,-215.0738,0.00013129,2]
[396533261,1765041038337,-223.0315306,0.00013129,2]
[396533263,1765041038346,-231.28369723,0.00013129,2]
[396533265,1765041038356,-239.84119403,0.00013129,2]
[396533267,1765041038366,-248.71531821,0.00013129,2]
[396533269,1765041038375,-205.28499458,0.00013129,2]
[396533271,1765041038385,-151.0,0.00013129,2]
[396533273,1765041038399,-250.0,0.00013129,2]
[396533275,1765041038408,-500.0,0.00013129,2]
[396533277,1765041038418,-250.0,0.00013129,2]
[396533279,1765041038427,-500.0,0.00013129,2]
[396533281,1765041038436,-250.0,0.00013129,2]
[396533283,1765041038447,-500.0,0.00013129,2]
[396533285,1765041038456,-250.0,0.00013129,2]
[396533287,1765041038466,-500.0,0.00013129,2]
[396533289,1765041038476,-250.0,0.00013129,2]
[396533291,1765041038485,-500.0,0.00013129,2]
[396533294,1765041038495,-250.0,0.00013129,2]
[396533296,1765041038505,-500.0,0.00013129,2]
[396533297,1765041038514,-250.0,0.00013129,2]
[396533298,1765041038523,-500.0,0.00013129,2]
[396533299,1765041038532,-367.28764115,0.00013129,2]
[396533300,1765041038541,-500.0,0.00013129,2]
[396533301,1765041038551,-500.0,0.00013129,2]
[396533302,1765041038561,-151.0,0.00013129,2]
[396533303,1765041038570,-500.0,0.00013129,2]
[396533304,1765041038580,-500.0,0.00013129,2]
[396533305,1765041038590,-574.12855637,0.00013129,2]
[396533306,1765041038600,-151.0,0.00013129,2]
[396533307,1765041038609,-500.0,0.00013129,2]
[396533308,1765041038619,-340.82182115,0.00013129,2]
[396533309,1765041038628,-500.0,0.00013129,2]
[396533310,1765041038638,-500.0,0.00013129,2]
[396533311,1765041038647,-151.08967993,0.00013129,2]
[396533312,1765041038656,-500.0,0.00013129,2]
[396533313,1765041038666,-500.0,0.00013129,2]
[396533314,1765041038675,-500.0,0.00013129,2]
[396533315,1765041038685,-500.0,0.00013129,2]
[396533316,1765041038694,-500.0,0.00013129,2]
[396533317,1765041038704,-500.0,0.00013129,2]
[396533318,1765041038713,-500.0,0.00013129,2]
[396533319,1765041038723,-500.0,0.00013129,2]
[396533320,1765041038735,-1000.0,0.00013129,2]
[396533321,1765041038744,-1000.0,0.00013129,2]
[396533322,1765041038754,-311.1,0.00013129,2]
[396533323,1765041038764,-1000.0,0.00013129,2]
[396533324,1765041038775,-1000.0,0.00013129,2]
[396533325,1765041038785,-151.0,0.00013129,2]
[396533326,1765041038795,-1000.0,0.00013129,2]
[396533327,1765041038805,-1000.0,0.00013129,2]
[396533328,1765041038817,-1000.0,0.00013129,2]
[396533329,1765041038827,-1000.0,0.00013129,2]
[396533330,1765041038835,-151.0,0.00013129,2]
[396533331,1765041038845,-1000.0,0.00013129,2]
[396533332,1765041038855,-1000.0,0.00013129,2]
[396533333,1765041038864,-1000.0,0.00013129,2]
[396533334,1765041038874,-500.0,0.00013129,2]
[396533335,1765041038884,-500.0,0.00013129,2]
[396533336,1765041038893,-500.0,0.00013129,2]
[396533337,1765041038903,-319.22133427,0.00013129,2]
[396533338,1765041038913,-578.20924308,0.00013129,2]
[396533339,1765041038923,-300.0,0.00013129,2]
[396533340,1765041038933,-647.06,0.0001313,2]
[396533341,1765041038943,-500.0,0.0001313,2]
[396533342,1765041038953,-500.0,0.0001313,2]
[396533343,1765041038962,-150.0,0.0001313,2]
[396533344,1765041038972,-500.0,0.0001313,2]
[396533345,1765041038981,-500.0,0.0001313,2]
[396533346,1765041038991,-500.0,0.0001313,2]
[396533347,1765041039000,-150.0,0.0001313,2]
[396533348,1765041039009,-500.0,0.0001313,2]
[396533349,1765041039019,-618.0,0.0001313,2]
[396533350,1765041039029,-3687.53846004,0.00013201,2]
[396533351,1765041039039,-500.0,0.00013267,2]
[396533352,1765041039048,-500.0,0.00013267,2]
[396533353,1765041039058,-500.0,0.00013267,2]
[396533354,1765041039067,-500.0,0.00013267,2]
[396533355,1765041039077,-500.0,0.00013267,2]
[396533356,1765041039087,-150.0,0.00013267,2]
[396533357,1765041039096,-500.0,0.00013267,2]
[396533358,1765041039106,-618.0,0.00013267,2]
[396533359,1765041039115,-150.0,0.00013301,2]
[396533360,1765041039126,-290.59023546,0.00013301,2]
[396533361,1765041039136,-150.0,0.00013301,2]
[396533362,1765041039146,-150.0,0.00013301,2]
[396533363,1765041039155,-186.43349316,0.00013301,2]
[396533364,1765041039164,-500.0,0.00013301,2]
[396533365,1765041039174,-150.0,0.00013301,2]
[396533366,1765041039183,-150.0,0.00013301,2]
[396533367,1765041039194,-150.0,0.00013301,2]
[396533368,1765041039203,-150.0,0.00013301,2]
[396533369,1765041039212,-500.0,0.00013301,2]
[396533370,1765041039221,-150.0,0.00013301,2]
[396533371,1765041039230,-150.0,0.00013301,2]
[396533372,1765041039239,-4716.98693458,0.00013367,2]
[396533373,1765041039248,-500.0,0.00013404,2]
[396533374,1765041039258,-500.0,0.00013404,2]
[396533375,1765041039267,-310.1827164,0.00013404,2]
[396533376,1765041039277,-500.0,0.00013404,2]
[396533377,1765041039286,-623.60011444,0.00013404,2]
[396533378,1765041039295,-189.0,0.00013404,2]
[396533379,1765041039306,-500.0,0.00013404,2]
[396533380,1765041039315,-618.0,0.00013404,2]
[396533381,1765041039324,-647.06,0.00013404,2]
[396533382,1765041039333,-150.0,0.00013438,2]
[396533383,1765041039342,-150.0,0.00013438,2]
[396533384,1765041039351,-500.0,0.00013438,2]
[396533385,1765041039361,-150.0,0.00013438,2]
[396533386,1765041039371,-150.0,0.00013438,2]
[396533387,1765041039380,-500.0,0.00013438,2]
[396533388,1765041039390,-150.0,0.00013438,2]
[396533389,1765041039398,-150.0,0.00013438,2]
[396533390,1765041039407,-500.0,0.00013541,2]
[396533391,1765041039417,-500.0,0.00013541,2]
[396533392,1765041039426,-500.0,0.00013541,2]
[396533393,1765041039436,-500.0,0.00013541,2]
[396533394,1765041039445,-618.0,0.00013541,2]
[396533395,1765041039454,-9999.99,0.00013575,2]
[396533396,1765041039464,-361.23,0.00013575,2]
[396533397,1765041039474,-480.8,0.00013575,2]
[396533398,1765041039484,-150.99,0.00013575,2]
[396533399,1765041039493,-150.99,0.00013575,2]
[396533400,1765041039502,-200.0,0.00013575,2]
[396533401,1765041039511,-200.0,0.00013575,2]
[396533402,1765041039521,-202.54455981,0.00013575,2]
[396533403,1765041039531,-200.0,0.00013575,2]
[396533404,1765041039542,-500.0,0.00013575,2]
[396533405,1765041039551,-151.77141743,0.00013575,2]
[396533406,1765041039560,-150.0,0.00013575,2]
[396533407,1765041039570,-1600.0,0.00013623,2]
[396533408,1765041039579,-595.37131296,0.00013677,2]
[396533409,1765041039589,-151.0,0.00013677,2]
[396533410,1765041039667,-151.0,0.00013677,2]
[396533411,1765041039677,-500.0,0.00013678,2]
[396533412,1765041039686,-338.37101263,0.00013678,2]
[396533413,1765041039696,-500.0,0.00013678,2]
[396533414,1765041039705,-618.0,0.00013678,2]
[396533415,1765041039715,-647.06,0.00013678,2]
[396533416,1765041039724,-239.0,0.00013683,2]
[396533417,1765041039735,-40626.37747338,0.00013686,2]
[396533418,1765041039744,-500.0,0.00013698,2]
[396533419,1765041039754,-500.0,0.00013698,2]
[396533420,1765041039763,-500.0,0.00013698,2]
[396533421,1765041039774,-500.0,0.00013698,2]
[396533422,1765041039783,-500.0,0.00013698,2]
[396533423,1765041039792,-500.0,0.00013698,2]
[396533424,1765041039801,-500.0,0.00013698,2]
[396533425,1765041039812,-500.0,0.00013698,2]
[396533426,1765041039821,-500.0,0.00013698,2]
[396533427,1765041039830,-166.66,0.00013699,2]
[396533429,1765041039839,-500.0,0.00013699,2]
[396533431,1765041039849,-150.0,0.00013699,2]
[396533432,1765041039858,-362.0,0.00013711,2]
[396533433,1765041039867,-320.0,0.00013712,2]
[396533434,1765041039876,-250.0,0.00013712,2]
[396533435,1765041039887,-264.07,0.00013713,2]
[396533436,1765041039896,-3687.53846001,0.00013723,2]
[396533438,1765041039905,-445.08504534,0.00013815,2]
[396533439,1765041039914,-500.0,0.00013815,2]
[396533440,1765041039923,-165.24586606,0.0001382,2]
[396533441,1765041039933,-496.06477237,0.00013836,2]
[396533442,1765041039942,-166.66,0.00013891,2]
[396533443,1765041039951,-255.0,0.000139,2]
[396533444,1765041039960,-4716.98693458,0.00013933,2]
[396533445,1765041039969,-500.0,0.00013952,2]
[396533446,1765041039978,-647.06,0.00013952,2]
[396533447,1765041039987,-3230.97,0.0001396,2]
[396533448,1765041039996,-291.0,0.00013977,2]
[396533449,1765041040005,-150.0,0.00014032,2]
[396533450,1765041040015,-420.0,0.00014039,2]
[396533451,1765041040024,-300.0,0.00014079,2]
[396533452,1765041040033,-300.0,0.00014079,2]
[396533453,1765041040042,-250.0,0.00014079,2]
[396533454,1765041040051,-195.0,0.00014079,2]
[396533455,1765041040060,-300.0,0.00014079,2]
[396533456,1765041040070,-300.0,0.00014079,2]
[396533457,1765041040080,-300.0,0.00014079,2]
[396533458,1765041040089,-300.0,0.00014079,2]
[396533459,1765041040099,-240.20631203,0.00014079,2]
[396533460,1765041040109,-250.0,0.00014079,2]
[396533461,1765041040119,-1680.0,0.00014079,2]
[396533462,1765041040128,-263.50313685,0.0001408,2]
[396533463,1765041040137,-300.0,0.0001408,2]
[396533464,1765041040147,-186.2305426,0.0001408,2]
[396533465,1765041040156,-250.0,0.0001408,2]
[396533466,1765041040166,-166.66,0.00014083,2]
[396533467,1765041040175,-413.63678598,0.00014089,2]
[396533468,1765041040183,-805.0,0.00014139,2]
[396533469,1765041040192,-424.95941248,0.00014162,2]
[396533470,1765041040205,-1267.04058752,0.00014162,2]
[396533471,1765041040216,-4668.08,0.00014225,2]
[396533472,1765041040225,-647.06,0.00014225,2]
[396533473,1765041040235,-617.40005154,0.00014225,2]
[396533474,1765041040244,-243.15827392,0.00014225,2]
[396533475,1765041040253,-153.01637236,0.00014225,2]
[396533476,1765041040263,-3687.53846001,0.00014245,2]
[396533477,1765041040274,-674.46580315,0.00014254,2]
[396533478,1765041040283,-166.66,0.00014275,2]
[396533479,1765041040292,-151.0,0.00014303,2]
[396533480,1765041040301,-19200.63,0.00014306,2]
[396533481,1765041040309,-500.0,0.00014392,2]
[396533482,1765041040319,-166.66,0.00014468,2]
[396533483,1765041040329,-603.79,0.00014485,2]
[396533484,1765041040338,-322.6107,0.00014498,2]
[396533485,1765041040348,-311.1,0.00014498,2]
[396533486,1765041040358,-647.06,0.00014499,2]
[396533487,1765041040367,-4716.98693458,0.000145,2]
[396533488,1765041040379,-245.62,0.00014631,2]
[396533489,1765041040389,-926.90877209,0.00014646,2]
[396533490,1765041040399,-256.51,0.00014657,2]
[396533491,1765041040408,-166.66,0.0001466,2]
[396533492,1765041040418,-3687.53846001,0.00014767,2]
[396533493,1765041040428,-647.06,0.00014773,2]
[396533494,1765041040438,-640.24385345,0.00014773,2]
[396533495,1765041040447,-674.46580313,0.00014775,2]
[396533496,1765041040457,-165.24586606,0.0001484,2]
[396533497,1765041040468,-500.0,0.00014973,2]
[396533498,1765041040477,-500.0,0.00014973,2]
[396533499,1765041040488,-150.0,0.00014973,2]
[396533500,1765041040497,-647.1,0.00015047,2]
[396533501,1765041040506,-4716.98693458,0.00015067,2]
[396533502,1765041040515,-2450.0,0.00015068,2]
[396533503,1765041040525,-1900.0,0.00015068,2]
[396533504,1765041040534,-433.0,0.0001509,2]
[396533505,1765041040543,-278.59718528,0.00015108,2]
[396533506,1765041040553,-232.03506898,0.00015108,2]
[396533507,1765041040562,-150.0,0.0001511,2]
[396533508,1765041040571,-200.0,0.00015247,2]
[396533509,1765041040581,-62.38857216,0.00015289,2]
[396533510,1765041040592,-3625.14988785,0.00015289,2]
[396533511,1765041040602,-674.46580313,0.00015296,2]
[396533512,1765041040611,-465.49970241,0.00015321,2]
[396533513,1765041040623,-1600.0,0.00015326,2]
[396533514,1765041040633,-587.0,0.00015399,2]
[396533515,1765041040642,-250.0,0.00015431,2]
[396533516,1765041040651,-2351.0,0.00015487,2]
[396533517,1765041040661,-1000.0,0.00015521,2]
[396533518,1765041040670,-774.11803196,0.00015521,2]
[396533519,1765041040679,-1433.0,0.00015548,2]
[396533520,1765041040689,-2450.0,0.00015616,2]
[396533521,1765041040698,-4716.98693458,0.00015633,2]
[396533522,1765041040708,-6290.98307283,0.00015633,2]
[396533523,1765041040717,-1500.0,0.00015723,2]
[396533524,1765041040727,-150.0,0.00015776,2]
[396533525,1765041040739,-3687.53846001,0.00015812,2]
[396533526,1765041040750,-674.46580313,0.00015817,2]
[396533527,1765041040760,-1605.0,0.00015833,2]
[396533528,1765041040771,-611.0,0.00015833,2]
[396533529,1765041040781,-1323.0,0.00015833,2]
[396533530,1765041040791,-3446.0,0.00015833,2]
[396533532,1765041040801,-614.0,0.00015833,2]
[396533533,1765041040812,-215.3848888,0.00015833,2]
[396533535,1765041041416,-618.0,0.00013815,2]
[396533536,1765041041426,-286.51,0.00013952,2]
[396533537,1765041041452,-331.49,0.00013952,2]
[396533538,1765041041460,-618.0,0.00014089,2]
[396533539,1765041041469,-618.0,0.00014226,2]
[396533540,1765041041479,-618.0,0.00014363,2]
[396533541,1765041041490,-618.0,0.000145,2]
[396533542,1765041041506,-1043.6151112,0.00015833,2]
[396533543,1765041041516,-910.0,0.00015833,2]
[396533544,1765041041526,-1195.0,0.00015833,2]
[396533545,1765041041535,-280.789,0.00015833,2]
[396533546,1765041041545,-562.0,0.00015833,2]
[396533547,1765041041554,-4707.0,0.00015833,2]
[396533548,1765041041563,-165.24586606,0.0001586,2]
[396533549,1765041041572,-334.5472959,0.00015867,2]
[396533550,1765041041581,-322.6107,0.00015867,2]
[396533551,1765041041590,-151.0,0.00015868,2]
[396533552,1765041041599,-556.81550109,0.00015868,2]
[396533553,1765041041608,-1011.7302384,0.000159,2]
[396533554,1765041041618,-168.0,0.00015981,2]
[396533555,1765041041627,-1500.0,0.00016068,2]
[396533556,1765041041637,-224.36380487,0.00016108,2]
[396533557,1765041041646,-152.0,0.00016143,2]
[396533558,1765041041655,-200.0,0.00016143,2]
[396533559,1765041041664,-150.118,0.00016143,2]
[396533560,1765041041673,-150.145,0.00016143,2]
[396533561,1765041041682,-162.942,0.00016143,2]
[396533562,1765041041692,-150.0,0.00016143,2]
[396533563,1765041041701,-150.23,0.00016143,2]
[396533564,1765041041711,-150.0,0.00016143,2]
[396533565,1765041041720,-2450.0,0.00016164,2]
[396533566,1765041041730,-1000.0,0.00016198,3]
[396533567,1765041041744,-1000.0,0.00016199,3]
[396533568,1765041041753,-4716.98693458,0.000162,2]
[396533569,1765041041762,-997.38887559,0.0001621,2]
[396533570,1765041041772,-1404.84206724,0.00016214,2]
[396533571,1765041041781,-168.0,0.00016237,2]
[396533572,1765041041791,-168.0,0.00016249,2]
[396533573,1765041041800,-168.0,0.00016265,2]
[396533574,1765041041813,-5814.38021,0.0001627,2]
[396533575,1765041041823,-5814.38021,0.0001627,2]
[396533576,1765041041833,-168.0,0.00016271,2]
[396533577,1765041041842,-260.52392604,0.00016277,2]
[396533578,1765041041852,-151.0,0.00016284,2]
[396533579,1765041041861,-5489.0,0.00016287,2]
[396533580,1765041041871,-1571.4006389,0.00016287,2]
[396533581,1765041041880,-34593.99031328,0.00016287,2]
[396533582,1765041041892,-543.74,0.00016287,2]
[396533583,1765041042015,-618.0,0.00014637,2]
[396533584,1765041042025,-90997.23356955,0.00016287,2]
[396533585,1765041042037,-2291.63780174,0.00016287,2]
[396533589,1765041042092,-707.12359549,0.00015833,2]
[396533590,1765041042103,-5805.87640451,0.00015833,2]
[396533591,1765041042113,-1237.72343043,0.00016287,2]
[396533592,1765041042128,-1201.2,0.00016287,2]
[396533593,1765041042139,-5048.57026758,0.00016287,2]
[396533606,1765041045877,-1.7e-07,0.00014774,2]
[396533608,1765041046794,-617.99999983,0.00014774,2]
[396533609,1765041046804,-37106.23049938,0.00016287,2]
[396533610,1765041047383,-618.0,0.00014911,2]
[396533611,1765041047393,-618.0,0.00015048,2]
[396533612,1765041047403,-618.0,0.00015185,2]
[396533613,1765041047415,-618.0,0.00015322,2]
[396533614,1765041047424,-50131.75224807,0.00016287,2]
[396533615,1765041047449,-453.0,0.00016287,2]
[396533616,1765041047466,-1819.95814,0.00016287,2]
[396533626,1765041109394,978.143177,0.00012734,2]
[396533628,1765041132705,-500.0,0.00012799,2]
[396533629,1765041132730,-500.0,0.00012799,2]
[396533630,1765041132756,-456.08863483,0.00012799,2]
[396533631,1765041132783,-500.0,0.00012799,2]
[396533632,1765041132808,-500.0,0.00012799,2]
[396533633,1765041132833,-203.33864353,0.00012799,2]
[396533634,1765041135208,-280.66461369,0.00012799,2]
[396533638,1765041161949,-15.99674278,0.00012799,2]
[396533639,1765041161974,-274.68672037,0.00012799,2]
[396533640,1765041164045,-50.31327963,0.00012799,2]
[396533641,1765041164071,-500.0,0.00012799,2]
[396533642,1765041164095,-44.02341853,0.00012799,2]
[396533659,1765041207097,-300.0,0.00012798,2]
[396533660,1765041207123,-128.1568415,0.00012799,2]
[396533661,1765041208628,-311.51431994,0.00012799,2]
[396533662,1765041211050,-16.30542003,0.00012799,2]
[396533663,1765041211076,-180.94859555,0.00012799,2]
[396533665,1765041212530,-271.42053813,0.00012799,2]
[396533671,1765041214549,-47.63086632,0.00012799,2]
[396533672,1765041214571,-150.0,0.00012799,2]
[396533673,1765041214595,-52.36913368,0.00012799,2]
[396533674,1765041216298,-447.63086632,0.00012799,2]
[396533675,1765041216323,-57.37715468,0.00012799,2]
[396533678,1765041217698,-401.05276483,0.00012799,2]
[396533679,1765041233720,304.2795,0.000127,2]
[396533680,1765041235638,-41.57008049,0.00012799,2]
[396533681,1765041235662,-271.01262797,0.00012799,2]
[396533682,1765041235689,-17.03975682,0.00012799,2]
[396533694,1765041267588,-302.59788116,0.00012799,2]
[396533701,1765041296711,1415.09608041,0.000127,2]
[396533702,1765041297788,-180.36236202,0.00012799,2]
[396533703,1765041297814,-158.00865061,0.00012799,2]
[396533711,1765041326958,-296.70691283,0.00012799,2]
[396533727,1765041389278,-300.0,0.00012798,2]
[396533728,1765041389318,-45.28443656,0.00012799,2]
[396533729,1765041389358,-500.0,0.00012799,2]
[396533730,1765041389393,-500.0,0.00012799,2]
[396533731,1765041389422,-300.0,0.00012799,2]
[396533732,1765041389453,-1200.0,0.00012799,2]
[396533733,1765041389484,-150.0,0.00012799,2]
[396533734,1765041389517,-500.0,0.00012799,2]
[396533735,1765041389547,-1185.3229,0.000128,2]
[396533736,1765041390055,-638.79532688,0.000128,2]
[396533737,1765041390138,-10000.01,0.000128,2]
[396533738,1765041392548,-10000.01,0.000128,2]
[396533749,1765041417295,-281.8735946,0.00012799,2]
[396533750,1765041418418,-218.1264054,0.00012799,2]
[396533751,1765041418443,-48.39835594,0.00012799,2]
[396533753,1765041419976,-196.79562983,0.00012799,2]